fUST/lending_fUST_20250226
["ID","MTS","AMOUNT","RATE_DAILY","PERIOD"]
[354484496,1740527438254,-500.0,0.000455,120]
[354484500,1740527438300,-1397.0,0.000455,120]
[354484502,1740527438321,-272.10094707,0.000455,120]
[354484504,1740527438332,-1092.32587227,0.000455,120]
[354484505,1740527438344,-11382.22291403,0.000455,120]
[354484846,1740527443371,-6941.21571603,0.000455,120]
[354486593,1740527571348,164.927012,0.00013699,2]
[354486594,1740528219474,154.0,0.00021,10]
[354486595,1740528303172,161.11156973,0.00011973,2]
[354486596,1740528303205,151.11049539,0.00013673,2]
[354486646,1740528632401,-180.10837,0.00037552,60]
[354486648,1740528632411,-400.0,0.00038758,5]
[354486650,1740528632421,-419.5982992,0.00038759,2]
[354486652,1740528632433,-4580.4017008,0.00038759,2]
[354486654,1740528632443,-172.34641537,0.00039151,2]
[354486656,1740528632452,-160.79491172,0.00039463,2]
[354486658,1740528632462,-24900.0,0.00039546,2]
[354486660,1740528632471,-187.65273121,0.00039563,117]
[354486662,1740528632481,-359.959961,0.00039663,2]
[354486664,1740528632492,-202.88895223,0.000399,8]
[354486666,1740528632502,-4344.342254,0.00039909,2]
[354486668,1740528632511,-500.0,0.00040693,112]
[354486670,1740528632520,-560.0,0.00041395,5]
[354486672,1740528632530,-160.7949117,0.00042106,28]
[354486674,1740528632540,-202.88895223,0.00042627,9]
[354486676,1740528632554,-596.0,0.00044212,5]
[354486679,1740528632568,-10000.0,0.000445,120]
[354486681,1740528632581,-160.7949117,0.0004475,28]
[354486683,1740528632593,-281.647,0.000449,72]
[354486685,1740528632607,-1140.41650929,0.0004499,4]
[354486687,1740528632618,-6088.0,0.00045,120]
[354486689,1740528632628,-50000.0,0.00045,120]
[354486690,1740528632638,-202.88895223,0.00045355,10]
[354486692,1740528632651,-154.8524317,0.00045464,30]
[354486694,1740528632663,-59430.58235037,0.000455,120]
[354486696,1740528632677,-749.57,0.000455,120]
[354486697,1740528632691,-1081.39280644,0.000455,120]
[354486698,1740528632706,-10625.39249975,0.000455,120]
[354486699,1740528632725,-10364.99996,0.000455,120]
[354486700,1740528632744,-147246.93012084,0.000455,120]
[354486701,1740528632758,-650.84243801,0.000455,120]
[354486702,1740528632773,-18165.36518372,0.000455,120]
[354486704,1740528632793,-471.92937257,0.000455,120]
[354486705,1740528632806,-16666.300279,0.000455,120]
[354486707,1740528632819,-24771.93396676,0.000455,120]
[354486709,1740528632830,-557.1188801,0.00045548,30]
[354486710,1740528632842,-2000.0,0.00046088,60]
[354486711,1740528632853,-355.4206398,0.00046253,30]
[354486712,1740528632865,-1267.84377906,0.00046475,2]
[354486713,1740528632876,-4129.42342376,0.00046475,2]
[354486714,1740528632888,-1140.41650929,0.00046564,4]
[354486715,1740528632901,-1176.0,0.00046565,120]
[354486716,1740528632912,-1176.0,0.00046565,120]
[354486717,1740528632924,-1176.0,0.00046565,120]
[354486718,1740528632934,-1176.0,0.00046565,120]
[354486719,1740528632944,-1176.0,0.00046565,120]
[354486720,1740528632954,-1176.0,0.00046565,120]
[354486721,1740528632965,-1176.0,0.00046565,120]
[354486722,1740528632976,-1176.0,0.00046565,120]
[354486723,1740528632987,-1176.0,0.00046565,120]
[354486724,1740528632999,-1176.0,0.00046565,120]
[354486725,1740528633011,-664.0,0.00046565,120]
[354486726,1740528633022,-291.84,0.00046565,120]
[354486727,1740528633034,-11036.63008323,0.00046565,4]
[354486728,1740528633049,-9490.86708397,0.00046565,4]
[354486729,1740528633062,-739.26229586,0.00046572,120]
[354486730,1740528633077,-260.73770414,0.00046572,120]
[354486731,1740528633088,-533.55900165,0.00046572,2]
[354486732,1740528633101,-151.0,0.00046572,2]
[354486733,1740528633112,-500.0,0.00046572,120]
[354486734,1740528633126,-500.0,0.00046573,7]
[354486735,1740528633138,-500.0,0.00046573,2]
[354486736,1740528633148,-500.51061943,0.00046573,7]
[354486737,1740528633159,-500.0,0.00046573,10]
[354486738,1740528633169,-306.58259879,0.00046573,10]
[354486739,1740528633180,-500.0,0.00046573,10]
[354486740,1740528633191,-500.0,0.00046573,7]
[354486741,1740528633202,-516.30303863,0.00046573,10]
[354486742,1740528633213,-160.15574738,0.00046573,10]
[354486743,1740528633226,-500.0,0.00046573,10]
[354486744,1740528633238,-162.17335126,0.00046573,3]
[354486745,1740528633251,-500.0,0.00046573,10]
[354486746,1740528633262,-500.0,0.00046573,10]
[354486747,1740528633272,-500.0,0.00046573,10]
[354486748,1740528633283,-500.0,0.00046573,10]
[354486749,1740528633294,-151.0,0.00046573,120]
[354486750,1740528633305,-238.265994,0.00046573,120]
[354486751,1740528633316,-5540.88751538,0.00046573,120]
[354486752,1740528633331,-12318.72248462,0.00046573,120]
[354486753,1740528633343,-500.0,0.00046574,120]
[354486754,1740528633353,-500.0,0.00046574,120]
[354486755,1740528633364,-500.0,0.00046574,120]
[354486756,1740528633374,-500.0,0.00046574,120]
[354486757,1740528633384,-500.0,0.00046574,120]
[354486758,1740528633396,-500.0,0.00046574,120]
[354486759,1740528633408,-500.0,0.00046574,120]
[354486760,1740528633419,-45.59417378,0.00046574,120]
[354486761,1740528633441,-454.40582622,0.00046574,120]
[354486762,1740528633452,-500.0,0.00046574,120]
[354486763,1740528633462,-500.0,0.00046574,120]
[354486764,1740528633473,-500.0,0.00046574,120]
[354486765,1740528633484,-500.0,0.00046574,120]
[354486766,1740528633495,-113.72099419,0.00046574,120]
[354486767,1740528633509,-386.27900581,0.00046574,120]
[354486768,1740528633520,-227.45354111,0.00046574,120]
[354486802,1740528638190,-471.94579389,0.00031627,2]
[354486803,1740528638200,-3004.51697991,0.00039342,2]
[354486804,1740528638210,-846.16223923,0.0004299,2]
[354486806,1740528638220,-500.0,0.00046574,2]
[354486808,1740528638230,-500.0,0.00046574,120]
[354486810,1740528638240,-500.0,0.00046574,2]
[354486812,1740528638251,-500.0,0.00046574,2]
[354486814,1740528638260,-500.0,0.00046574,120]
[354486816,1740528638270,-500.0,0.00046574,120]
[354486817,1740528638280,-556.51883106,0.00046574,2]
[354486819,1740528638289,-500.0,0.00046574,120]
[354486820,1740528638299,-500.0,0.00046574,120]
[354486822,1740528638309,-500.0,0.00046574,120]
[354486824,1740528638319,-222.45615591,0.00046574,120]
[354486826,1740528638331,-25.60051456,0.00046574,120]
[354486828,1740528638340,-598.54694068,0.00046574,31]
[354486830,1740528638350,-239.08210508,0.00046574,120]
[354486833,1740528638360,-500.0,0.00046574,120]
[354486836,1740528638369,-500.0,0.00046574,120]
[354486839,1740528638380,-500.0,0.00046574,120]
[354486842,1740528638390,-500.0,0.00046574,120]
[354486845,1740528638399,-500.0,0.00046574,120]
[354486847,1740528638409,-500.0,0.00046574,120]
[354486849,1740528638418,-419.50459364,0.00046574,120]
[354486850,1740528638427,-2271.13869153,0.00046575,5]
[354486851,1740528638437,-3486.1050842,0.00046575,5]
[354486852,1740528638446,-82396.55040032,0.00046575,30]
[354486853,1740528638457,-50093.78592244,0.00046575,30]
[354486854,1740528638473,-1812.66520375,0.00046575,30]
[354486855,1740528638484,-2110.57618151,0.00046575,30]
[354486856,1740528638497,-272.08,0.00046575,30]
[354486857,1740528638510,-7845.92611805,0.00046575,30]
[354486858,1740528638522,-2921.3,0.00046575,30]
[354486859,1740528638533,-3240.0,0.00046575,30]
[354487077,1740528643438,-653.2902,0.00046575,30]
[354487404,1740528646872,-1337.380915,0.00046575,30]
[354487405,1740528646935,-1000.0,0.00046575,30]
[354487406,1740528646992,-17179.91757599,0.00046575,30]
[354488760,1740528889496,196.68363,0.00013699,2]
[354488769,1740529721691,301.999999,0.0002,120]
[354488776,1740529761453,-17194.41589598,0.00015,4]
[354488872,1740530023387,196.68363,0.00013699,2]
[354488908,1740531032675,-12000.37593129,0.0002596,2]
[354488909,1740531032687,-612.540291,0.0002596,2]
[354488911,1740531032782,-6990.9606925,0.0002596,2]
[354488912,1740531032792,-1875.9452853,0.00027795,2]
[354488913,1740531032802,-179.979981,0.00028894,2]
[354488914,1740531032811,-11521.29275839,0.00029,2]
[354488915,1740531032821,-160.7949117,0.00030215,2]
[354488916,1740531032830,-3532.7028307,0.00030315,2]
[354488917,1740531032840,-152.0,0.00030547,2]
[354488918,1740531032854,-2435.2222954,0.00035158,2]
[354488919,1740531032864,-250.0,0.00037852,2]
[354488920,1740531032874,-341.44938525,0.00038356,30]
[354488921,1740531032883,-500.0,0.00040624,25]
[354488922,1740531032893,-412.59798754,0.000419,120]
[354488923,1740531032905,-164.96837701,0.00041923,2]
[354488924,1740531032924,-524.2534289,0.00041973,7]
[354488925,1740531032933,-500.0,0.00041973,10]
[354488926,1740531032944,-500.0,0.00041973,10]
[354488927,1740531032955,-500.0,0.00041973,2]
[354488928,1740531032965,-500.0,0.00041973,10]
[354488929,1740531032975,-534.55119156,0.00041973,10]
[354488930,1740531032985,-414.57998495,0.00041973,10]
[354488931,1740531032995,-268.86965561,0.00041973,10]
[354488932,1740531033006,-151.15063977,0.00041973,10]
[354488933,1740531033016,-500.0,0.00041973,10]
[354488934,1740531033027,-641.86543425,0.00041973,10]
[354488935,1740531033037,-501.5223951,0.00041973,5]
[354488936,1740531033049,-500.0,0.00041973,10]
[354488937,1740531033060,-255.73097291,0.00041973,2]
[354488938,1740531033070,-151.0,0.0004199,2]
[354488939,1740531033081,-30.03920726,0.00041993,63]
[354488940,1740531033095,-226.21179274,0.00041993,63]
[354488941,1740531033107,-141.68633197,0.00041993,120]
[354488955,1740531038538,-160.0,0.000416,3]
[354488957,1740531038547,-160.0,0.00041983,4]
[354488959,1740531038557,-858.31366803,0.00041993,120]
[354488961,1740531038567,-17115.46,0.00041998,120]
[354488963,1740531038576,-46362.83,0.00042,30]
[354488965,1740531038585,-230.51475225,0.00042,10]
[354488967,1740531038594,-228.50209234,0.00042015,2]
[354488969,1740531038801,-500.0,0.00042015,31]
[354488970,1740531038811,-500.0,0.00042015,31]
[354488971,1740531038820,-500.0,0.00042015,31]
[354488972,1740531038829,-457.31570129,0.00042015,31]
[354488973,1740531038839,-500.0,0.00042015,31]
[354488974,1740531038848,-500.0,0.00042015,31]
[354488975,1740531038857,-500.0,0.00042015,31]
[354488976,1740531038867,-500.0,0.00042015,31]
[354488977,1740531038876,-500.0,0.00042015,31]
[354488978,1740531038885,-500.0,0.00042015,31]
[354488979,1740531038894,-500.0,0.00042015,31]
[354488980,1740531038905,-500.0,0.00042015,31]
[354488981,1740531038915,-500.0,0.00042015,31]
[354488982,1740531038925,-500.0,0.00042015,31]
[354488983,1740531038934,-500.0,0.00042015,31]
[354488984,1740531038943,-500.0,0.00042015,31]
[354488985,1740531038952,-529.71256362,0.00042015,31]
[354488986,1740531038962,-500.0,0.00042015,31]
[354488987,1740531038971,-500.0,0.00042015,31]
[354488988,1740531038980,-7277.56689977,0.00042016,2]
[354488989,1740531038992,-9499.47153349,0.00042016,2]
[354488990,1740531039003,-3782.50501255,0.00042016,2]
[354488991,1740531039014,-6970.87960091,0.00042016,2]
[354488992,1740531039025,-13207.44616993,0.00042016,2]
[354488993,1740531039037,-4410.39522008,0.00042016,2]
[354488994,1740531039049,-759.36274549,0.00042016,2]
[354488995,1740531039060,-91368.0136973,0.00042016,2]
[354488996,1740531039071,-7965.06971346,0.00042016,2]
[354488997,1740531039086,-11527.37751996,0.00042016,2]
[354489242,1740531043702,-742.5024786,0.00042016,2]
[354489556,1740531046816,-851.62567513,0.00042016,2]
[354492517,1740531993111,-3691.05346348,0.00024703,30]
[354492518,1740531993137,-93.39189751,0.000299,2]
[354492544,1740532232017,-320.33300285,0.0002521,10]
[354492546,1740532232132,-37586.43176605,0.0002521,10]
[354492551,1740532232194,-19241.20230282,0.0002521,10]
[354492552,1740532232206,-24482.05226628,0.0002521,10]
[354492553,1740532232216,-73.27476915,0.000299,2]
[354492554,1740532232226,-162.27,0.0003,2]
[354492555,1740532232235,-179.979981,0.00032446,2]
[354492556,1740532232245,-11658.64404631,0.00033972,30]
[354492557,1740532232257,-439.24673477,0.00033972,30]
[354492558,1740532232272,-6562.58751149,0.00033972,30]
[354492559,1740532232282,-192.0,0.00034628,2]
[354492560,1740532232291,-1000.0,0.00034628,7]
[354492561,1740532232301,-5000.0,0.00035617,30]
[354492562,1740532232311,-5000.0,0.00037101,30]
[354492563,1740532232321,-5000.0,0.00038261,60]
[354492564,1740532232330,-500.0,0.00039129,5]
[354492565,1740532232340,-500.0,0.00039129,5]
[354492567,1740532232349,-500.0,0.00039129,5]
[354492569,1740532232359,-500.0,0.00039129,5]
[354492570,1740532232368,-500.0,0.00039129,5]
[354492571,1740532232377,-151.14733521,0.00039129,5]
[354492572,1740532232386,-500.0,0.00039129,5]
[354492573,1740532232396,-500.0,0.00039129,5]
[354492574,1740532232405,-628.66350762,0.00039489,2]
[354492575,1740532232415,-5000.0,0.00039885,60]
[354492576,1740532232426,-500.0,0.00039938,5]
[354492577,1740532232435,-500.0,0.00039938,5]
[354492578,1740532232445,-167.8777974,0.00039976,2]
[354492579,1740532232454,-181.31,0.0003999,3]
[354492580,1740532232463,-241.2,0.00039999,56]
[354492581,1740532232472,-500.0,0.00039999,2]
[354492582,1740532232481,-500.0,0.00039999,31]
[354492583,1740532232491,-610.84800456,0.00039999,31]
[354492584,1740532232500,-500.0,0.00039999,31]
[354492585,1740532232509,-509.60277708,0.00039999,2]
[354492586,1740532232518,-330.3826142,0.00039999,31]
[354492587,1740532232528,-39960.87555405,0.0004,2]
[354492603,1740532237727,-160.7949117,0.000298,2]
[354492605,1740532237737,-767.5339905,0.00034,7]
[354492619,1740532237872,-3201.4760095,0.00034,7]
[354492622,1740532237882,-90321.01556237,0.0004,2]
[354492623,1740532237891,-500.0,0.0004,5]
[354492625,1740532237901,-16259.07565553,0.0004,30]
[354492628,1740532237914,-25278.80434447,0.0004,30]
[354492630,1740532237924,-160.394724,0.00040395,60]
[354492633,1740532237934,-160.394724,0.00040466,2]
[354492635,1740532237943,-3969.01,0.000405,7]
[354492637,1740532237952,-160.394724,0.0004056,60]
[354492639,1740532237962,-166.160499,0.0004056,60]
[354492640,1740532237974,-5000.0,0.00040897,90]
[354492643,1740532237983,-246.29105682,0.00041,2]
[354492645,1740532237992,-16402.32,0.00041095,120]
[354492647,1740532238001,-1000.0,0.00041095,120]
[354492649,1740532238011,-220.463912,0.00041096,120]
[354492650,1740532238020,-208.904446,0.00041096,120]
[354492652,1740532238029,-151.0,0.00041096,120]
[354492654,1740532238039,-151.0,0.00041096,120]
[354492656,1740532238048,-165.526617,0.00041096,120]
[354492657,1740532238058,-1000.0,0.00041123,120]
[354492658,1740532238068,-1000.0,0.0004115,120]
[354492659,1740532238078,-1000.0,0.00041178,120]
[354492660,1740532238088,-1000.0,0.00041205,120]
[354492661,1740532238097,-730.75684109,0.00041232,120]
[354492688,1740532239936,-269.24315891,0.00041232,120]
[354492690,1740532239946,-1000.0,0.0004126,120]
[354492692,1740532239955,-1000.0,0.00041287,120]
[354492694,1740532239964,-1000.0,0.00041315,120]
[354492696,1740532239973,-616.42743113,0.00041342,120]
[354492698,1740532239983,-2000.0,0.0004158,90]
[354492700,1740532239992,-518.73600501,0.000419,10]
[354492702,1740532240001,-1135.56934577,0.0004198,5]
[354492704,1740532240010,-12404.04365326,0.0004198,5]
[354492967,1740532242848,-420.493929,0.0004198,5]
[354493212,1740532245853,-2840.0,0.0004198,5]
[354493409,1740532257384,150.4,0.000138,2]
[354493414,1740533353105,-300.0,0.00014499,2]
[354493415,1740533353126,-332.65380645,0.000145,2]
[354493426,1740533432673,-300.0,0.00014499,2]
[354493427,1740533432683,-9405.86873226,0.000145,2]
[354493428,1740533432776,-1311.15524643,0.000145,2]
[354493429,1740533432788,-6908.74234327,0.000145,2]
[354493430,1740533432799,-6148.20780383,0.000145,2]
[354493431,1740533432810,-2303.45629011,0.000145,2]
[354493435,1740533438101,-10170.54003959,0.000145,2]
[354493436,1740533438113,-713.55829975,0.000145,2]
[354493437,1740533438125,-26290.0950556,0.000145,2]
[354493438,1740533438139,-5469.31199972,0.000145,2]
[354493439,1740533438149,-158.37857426,0.00015776,2]
[354493440,1740533438159,-310.0,0.00015876,2]
[354493441,1740533438170,-500.0,0.00018,3]
[354493442,1740533438181,-500.0,0.00023,4]
[354493443,1740533438191,-500.0,0.00023,4]
[354493444,1740533438200,-500.0,0.00023,4]
[354493445,1740533438211,-500.0,0.00024,4]
[354493446,1740533438221,-500.0,0.00024,4]
[354493447,1740533438231,-500.44,0.00025205,5]
[354493448,1740533438240,-6660.3486496,0.00033055,2]
[354493449,1740533438249,-157.56,0.00034678,5]
[354493450,1740533438259,-500.0,0.00038356,30]
[354493451,1740533438268,-500.0,0.0003863,32]
[354493452,1740533438278,-1000.0,0.000408,30]
[354493453,1740533438287,-1000.0,0.000408,40]
[354493454,1740533438296,-1000.0,0.000408,50]
[354493455,1740533438306,-1000.0,0.000408,60]
[354493456,1740533438315,-1000.0,0.000408,90]
[354493457,1740533438325,-5000.0,0.0004109,120]
[354493458,1740533438334,-500.0,0.00041095,120]
[354493459,1740533438344,-151.0,0.00041096,120]
[354493460,1740533438353,-151.0,0.00041096,120]
[354493461,1740533438363,-192.96,0.00041096,60]
[354493462,1740533438374,-36647.26858872,0.000411,30]
[354493463,1740533438389,-736.82141128,0.000411,30]
[354493464,1740533438400,-3175.21,0.000411,30]
[354493465,1740533438411,-519.3981779,0.00041175,4]
[354493466,1740533438422,-1000.0,0.000412,120]
[354493467,1740533438433,-2000.0,0.000413,120]
[354493468,1740533438442,-500.0,0.000414,2]
[354493469,1740533438451,-500.0,0.000417,10]
[354493470,1740533438460,-500.0,0.0004186,10]
[354493471,1740533438470,-500.0,0.0004186,10]
[354493472,1740533438480,-500.0,0.0004186,10]
[354493473,1740533438489,-500.0,0.0004186,10]
[354493474,1740533438498,-172.58809199,0.0004188,2]
[354493475,1740533438509,-4311.78,0.00041919,120]
[354493476,1740533438518,-513.83092153,0.00041919,120]
[354493477,1740533438527,-500.0,0.00041919,31]
[354493478,1740533438536,-500.0,0.00041919,31]
[354493479,1740533438546,-500.0,0.00041919,31]
[354493480,1740533438555,-500.0,0.00041919,31]
[354493481,1740533438565,-500.0,0.00041919,31]
[354493482,1740533438575,-500.0,0.00041919,31]
[354493483,1740533438584,-500.0,0.00041919,31]
[354493484,1740533438593,-500.0,0.00041919,31]
[354493485,1740533438602,-500.0,0.00041919,31]
[354493486,1740533438611,-500.0,0.00041919,31]
[354493487,1740533438621,-500.0,0.00041919,31]
[354493488,1740533438630,-500.0,0.00041919,31]
[354493489,1740533438639,-500.0,0.00041919,31]
[354493490,1740533438649,-500.0,0.00041919,31]
[354493491,1740533438658,-265.75875783,0.00041919,31]
[354493492,1740533438668,-42720.76161948,0.0004192,30]
[354493501,1740533440215,-942.32816266,0.0004192,30]
[354493502,1740533440227,-318.63610174,0.0004192,30]
[354493503,1740533440238,-339.85267622,0.0004192,30]
[354493504,1740533440249,-2837.90000003,0.0004192,30]
[354493505,1740533440305,-2932.21900585,0.0004192,30]
[354493506,1740533440318,-519.4,0.0004192,30]
[354493507,1740533440330,-2027.48999995,0.0004192,30]
[354493529,1740533443119,-615.80277921,0.00041919,31]
[354493530,1740533443129,-2338.98873398,0.0004192,30]
[354493531,1740533443140,-2286.22159571,0.0004192,30]
[354493532,1740533443151,-21522.54163323,0.0004192,30]
[354493533,1740533443163,-3474.9999975,0.0004192,30]
[354493534,1740533443195,-3005.80447823,0.0004192,30]
[354493574,1740534123521,500.0,0.0002,30]
[354493575,1740534129231,500.0,0.0002,30]
[354493576,1740534133757,500.0,0.0002,30]
[354493577,1740534176259,500.0,0.00021,30]
[354493578,1740534183984,500.0,0.00021,30]
[354493579,1740534197490,500.0,0.00021,30]
[354493580,1740534202323,500.0,0.00021,30]
[354493581,1740534207008,500.0,0.00021,30]
[354493582,1740534211343,500.0,0.00021,30]
[354493583,1740534215898,376.0,0.00021,30]
[354493584,1740534228874,500.0,0.00021,30]
[354493585,1740534232603,500.0,0.00021,30]
[354493586,1740534235949,500.0,0.00021,30]
[354493587,1740534239610,500.0,0.00021,30]
[354493588,1740534243465,500.0,0.00021,30]
[354493591,1740534608263,191.5002511,0.00013699,2]
[354493611,1740534632442,-3416.83299544,0.00014262,2]
[354493612,1740534632451,-161.41394832,0.000241,26]
[354493613,1740534632461,-381.80904951,0.000242,30]
[354493614,1740534632470,-190.8212417,0.0003654,2]
[354493615,1740534632480,-209.2347124,0.00036735,2]
[354493616,1740534632489,-400.0,0.00038354,5]
[354493617,1740534632499,-527.14305592,0.00038356,30]
[354493618,1740534632508,-160.0,0.00038809,3]
[354493619,1740534632519,-160.0,0.00039515,4]
[354493620,1740534632528,-1066.23,0.0004,120]
[354493621,1740534632538,-160.0,0.00040221,5]
[354493622,1740534632547,-160.0,0.00040927,6]
[354493623,1740534632556,-200.0,0.00040981,5]
[354493624,1740534632565,-13719.11325456,0.00041,120]
[354493625,1740534632574,-357172.74887438,0.00041,60]
[354493633,1740534638211,-853.16363822,0.00041,60]
[354493653,1740534640494,-719.089473,0.00041,60]
[354493658,1740534643316,-321.66502649,0.00041,60]
[354493659,1740534643328,-761.70021131,0.00041,60]
[354493660,1740534643360,-12.60685626,0.00041,60]
[354493661,1740534643372,-3018.79999998,0.00041,60]
[354493664,1740534646258,-111759.71163402,0.00041,60]
[354493665,1740534646271,-4514.64600118,0.00041,60]
[354493666,1740534646283,-691.0986394,0.00041,60]
[354493667,1740534646295,-20174.76964576,0.00041,60]
[354493668,1740534646306,-340.13451318,0.00041075,2]
[354493669,1740534646316,-5000.0,0.0004109,120]
[354493670,1740534646326,-190.267,0.0004109,60]
[354493671,1740534646336,-939.623137,0.00041175,4]
[354493672,1740534646346,-765.34523088,0.000415,30]
[354493673,1740534646355,-455.01891998,0.000415,32]
[354493696,1740535770173,-300.0,0.00035971,2]
[354493697,1740535770194,-203.90646697,0.00035972,2]
[354493712,1740535832516,-631.98987529,0.00035528,2]
[354493713,1740535832531,-16192.73049464,0.00035528,2]
[354493714,1740535832541,-161.41394832,0.000388,113]
[354493715,1740535832551,-10198.379175,0.000389,120]
[354493716,1740535832560,-180.5541978,0.00040137,30]
[354493717,1740535832570,-158.46727301,0.000408,28]
[354493718,1740535832579,-1802.49612579,0.000409,120]
[354493719,1740535832679,-8197.50387421,0.000409,120]
[354493720,1740535832689,-10000.0,0.000409,90]
[354493721,1740535832699,-865.72258882,0.000409,2]
[354493722,1740535832709,-1019.505344,0.00041042,4]
[354493723,1740535832719,-355.4206398,0.00041096,30]
[354493724,1740535832728,-355.4206398,0.00041096,30]
[354493725,1740535832738,-360.5267511,0.00041096,30]
[354493726,1740535832748,-360.6744898,0.00041096,30]
[354493727,1740535832757,-5011.51,0.000412,120]
[354493728,1740535832768,-152.213,0.000412,60]
[354493729,1740535832778,-1596.54108002,0.000415,32]
[354493730,1740535832787,-503.39887287,0.00041611,2]
[354493731,1740535832797,-160.0,0.00041633,7]
[354493732,1740535832806,-887.18,0.000418,120]
[354493734,1740535832820,-10100.0,0.000418,60]
[354493736,1740535832830,-171.70062716,0.00041879,2]
[354493738,1740535832839,-5000.0,0.000419,120]
[354493740,1740535832848,-302.5,0.0004191,30]
[354493741,1740535832859,-252.08,0.0004191,30]
[354493742,1740535832868,-210.07,0.0004191,30]
[354493743,1740535832878,-175.06,0.0004191,30]
[354493744,1740535832889,-875.31,0.0004191,30]
[354493745,1740535832900,-22690.80782114,0.0004192,30]
[354493746,1740535832909,-504.37483789,0.0004192,30]
[354493747,1740535832918,-403.8959639,0.0004192,30]
[354493748,1740535832927,-754.55920723,0.0004197,4]
[354493749,1740535832937,-15540.01,0.00041979,120]
[354493750,1740535832946,-1173.0,0.0004198,120]
[354493751,1740535832956,-1173.0,0.0004198,120]
[354493752,1740535832965,-1173.0,0.0004198,120]
[354493753,1740535832975,-1173.0,0.0004198,120]
[354493754,1740535832984,-1173.0,0.0004198,120]
[354493755,1740535832994,-373.0,0.0004198,120]
[354493756,1740535833003,-8503.6459863,0.00042,30]
[354493757,1740535833012,-20233.62490925,0.00042,30]
[354493758,1740535833022,-178.54302042,0.00042,2]
[354493759,1740535833032,-754.55920723,0.00042088,4]
[354493760,1740535833041,-2860.09,0.000421,30]
[354493761,1740535833051,-33830.75,0.000421,30]
[354493762,1740535833060,-503.25930339,0.000421,7]
[354493763,1740535833070,-275.336824,0.00042106,120]
[354493764,1740535833080,-151.683778,0.00042106,120]
[354493765,1740535833089,-153.033443,0.00042106,120]
[354493766,1740535833099,-500.0,0.00042106,30]
[354493767,1740535833108,-754.55920723,0.00042113,4]
[354493768,1740535833117,-151.289527,0.00042122,120]
[354493769,1740535833127,-151.279666,0.00042122,120]
[354493770,1740535833140,-151.0,0.00042122,120]
[354493771,1740535833149,-278.169556,0.00042122,120]
[354493772,1740535833159,-500.0,0.00042122,31]
[354493773,1740535833169,-500.0,0.00042122,31]
[354493774,1740535833178,-500.0,0.00042122,31]
[354493775,1740535833188,-500.0,0.00042122,31]
[354493776,1740535833198,-500.0,0.00042122,31]
[354493777,1740535833207,-500.0,0.00042122,31]
[354493778,1740535833216,-500.0,0.00042122,31]
[354493779,1740535833226,-500.0,0.00042122,31]
[354493780,1740535833236,-500.0,0.00042122,31]
[354493781,1740535833246,-500.0,0.00042122,31]
[354493782,1740535833256,-500.0,0.00042122,31]
[354493783,1740535833265,-500.0,0.00042122,31]
[354493784,1740535833276,-253.61957946,0.00042122,31]
[354493785,1740535833286,-500.0,0.00042122,31]
[354493786,1740535833295,-500.0,0.00042122,31]
[354493787,1740535833306,-500.0,0.00042122,31]
[354493788,1740535833315,-500.0,0.00042122,31]
[354493789,1740535833326,-500.0,0.00042122,31]
[354493790,1740535833336,-500.0,0.00042122,31]
[354493791,1740535833345,-500.0,0.00042122,31]
[354493792,1740535833355,-500.0,0.00042122,31]